fUSD/lending_fUSD_20240815
["ID","MTS","AMOUNT","RATE_DAILY","PERIOD"]
[334968403,1723687833355,-2406.25443,0.0001287,2]
[334968404,1723687833364,-189.18,0.00012882,2]
[334968405,1723687833374,-2572.4,0.00012905,2]
[334968406,1723687833383,-477.45978756,0.0001294,2]
[334968407,1723687833393,-2846.41264246,0.00013052,2]
[334968408,1723687833403,-498.49310349,0.00013052,2]
[334968409,1723687833412,-150.0,0.000131,2]
[334968411,1723687833422,-250.0,0.00013284,2]
[334968413,1723687833431,-1294.2,0.00013284,2]
[334968414,1723687833440,-1760.08,0.00013284,2]
[334968416,1723687833450,-3629.01275957,0.000133,2]
[334968418,1723687833459,-224.0,0.00013425,2]
[334968420,1723687833469,-236.27645217,0.00013698,2]
[334968422,1723687833478,-189.47,0.00013699,2]
[334968423,1723687833488,-654.121857,0.00013851,2]
[334968424,1723687833497,-196.0603483,0.0001387,2]
[334968425,1723687833507,-155.0,0.0001387,2]
[334968426,1723687833516,-348.40361717,0.00013971,2]
[334968427,1723687833525,-152.16,0.00013973,2]
[334968428,1723687833535,-377.45,0.00013973,2]
[334968429,1723687833545,-194.66,0.00013973,2]
[334968430,1723687833554,-650.0,0.00014,2]
[334968431,1723687833563,-732.74,0.0001407,2]
[334968432,1723687833572,-2406.25443,0.0001412,2]
[334968433,1723687833581,-180.8,0.00014169,2]
[334968434,1723687833591,-270.83032257,0.00014225,2]
[334968435,1723687833600,-366.07990366,0.00014245,2]
[334968436,1723687833609,-531.26864504,0.00014509,2]
[334968437,1723687833618,-3944.21434876,0.00014517,2]
[334968438,1723687833628,-155.0,0.00014517,2]
[334968439,1723687833637,-1259.41961163,0.00014681,2]
[334968440,1723687833647,-3629.01275957,0.000147,2]
[334968441,1723687833657,-224.0,0.00014768,2]
[334968442,1723687833665,-304.44053607,0.00014782,2]
[334968443,1723687833674,-189.18,0.00015146,2]
[334968444,1723687833684,-2406.25444,0.0001537,2]
[334968445,1723687833693,-180.8,0.00015743,2]
[334968446,1723687833703,-3629.01275957,0.000161,2]
[334968447,1723687833712,-224.0,0.0001611,2]
[334968448,1723687833722,-2406.25443,0.0001662,2]
[334968449,1723687833731,-1000.0,0.00017142,2]
[334968450,1723687833740,-180.8,0.00017318,2]
[334968451,1723687833749,-189.18,0.00017409,2]
[334968452,1723687833758,-3629.01275957,0.000175,2]
[334968453,1723687833768,-2406.25443,0.0001787,2]
[334968454,1723687833777,-951.0,0.00018,3]
[334968455,1723687833787,-2988.0,0.00018,3]
[334968456,1723687833796,-200.0,0.0001816,2]
[334968457,1723687833806,-180.8,0.00018892,2]
[334968458,1723687833815,-3629.01275957,0.000189,2]
[334968459,1723687833825,-1414.90684302,0.00019,2]
[334968460,1723687833834,-1000.0,0.00019285,2]
[334968461,1723687833844,-1500.0,0.000195,3]
[334968462,1723687833853,-189.18,0.00019673,2]
[334968463,1723687833864,-732.74,0.00019698,2]
[334968464,1723687833874,-185.0,0.0002,2]
[334968465,1723687833883,-909.53476271,0.00020264,2]
[334968466,1723687833893,-3629.01275957,0.000203,2]
[334968467,1723687833903,-377.45,0.00020447,2]
[334968468,1723687833913,-150.409,0.00020671,2]
[334968469,1723687833922,-426.45,0.00021315,2]
[334968470,1723687833932,-531.07,0.00021315,2]
[334968471,1723687833942,-150.0,0.00021315,2]
[334968472,1723687833952,-426.45,0.00021315,2]
[334968473,1723687833962,-721.53,0.00021315,2]
[334968474,1723687833972,-426.45,0.00021315,2]
[334968475,1723687833981,-426.45,0.00021315,2]
[334968476,1723687833992,-426.45,0.00021315,2]
[334968477,1723687834005,-294.49,0.00021315,2]
[334968478,1723687834015,-429.94,0.00021315,2]
[334968479,1723687834025,-1000.0,0.00021428,2]
[334968480,1723687834034,-150.53,0.00021634,2]
[334968481,1723687834044,-535.32,0.00021634,2]
[334968482,1723687834054,-429.66,0.00021634,2]
[334968483,1723687834218,-3629.01275957,0.000217,2]
[334968484,1723687834228,-2000.0,0.000219,2]
[334968485,1723687834238,-522.83,0.00021918,2]
[334968486,1723687834248,-150.0,0.00021918,2]
[334968487,1723687834259,-189.18,0.00021937,2]
[334968488,1723687834268,-500.0,0.0002195,2]
[334968489,1723687834278,-150.92,0.00021994,2]
[334968490,1723687834288,-796.56499259,0.00022,2]
[334968491,1723687834297,-829.57644938,0.00022008,2]
[334968492,1723687834307,-1500.0,0.000222,2]
[334968493,1723687834316,-500.0,0.00022361,2]
[334968494,1723687834325,-792.11749466,0.00022371,2]
[334968495,1723687834335,-414.82,0.00022466,2]
[334968496,1723687834344,-150.0,0.00022495,2]
[334968497,1723687834353,-241.6,0.00022849,2]
[334968498,1723687834363,-500.0,0.00022909,2]
[334968499,1723687834373,-561.0,0.00023,2]
[334968500,1723687834383,-1005.79232063,0.00023,11]
[334968501,1723687834392,-3956.29218508,0.00023,2]
[334968502,1723687834402,-5000.0,0.00023009,2]
[334968503,1723687834411,-5000.0,0.00023048,2]
[334968504,1723687834420,-150.0,0.00023071,2]
[334968505,1723687834430,-5000.0,0.00023079,2]
[334968506,1723687834439,-1764.72554699,0.00023095,2]
[334968507,1723687834449,-3629.01275957,0.000231,2]
[334968508,1723687834459,-5000.0,0.0002317,2]
[334968509,1723687834469,-5000.0,0.00023176,2]
[334968510,1723687834478,-1000.0,0.00023183,2]
[334968511,1723687834487,-180.0,0.00023205,2]
[334968512,1723687834496,-4865.10746091,0.00023245,2]
[334968513,1723687834509,-134.89253909,0.00023245,2]
[334968514,1723687834519,-358.68446161,0.0002326,2]
[334968515,1723687834530,-264.82796935,0.0002326,2]
[334968516,1723687834541,-544.57707993,0.0002326,2]
[334968517,1723687834552,-418.54007673,0.0002326,2]
[334968518,1723687834563,-837.82808505,0.0002326,2]
[334968519,1723687834584,-2575.54232733,0.0002326,2]
[334968520,1723687834594,-5000.0,0.00023267,2]
[334968521,1723687834603,-585.83879611,0.00023322,2]
[334968522,1723687834614,-285.0,0.00023322,2]
[334968523,1723687834625,-932.77697044,0.00023322,2]
[334968524,1723687834637,-624.41585683,0.00023322,2]
[334968525,1723687834648,-472.04,0.00023322,2]
[334968526,1723687834660,-811.05669613,0.00023322,2]
[334968527,1723687834671,-586.25508784,0.00023322,2]
[334968528,1723687834683,-702.61659265,0.00023322,2]
[334968529,1723687834693,-198.56057795,0.00023323,2]
[334968530,1723687834709,-531.44499388,0.00023323,2]
[334968531,1723687834721,-4269.99442817,0.00023323,2]
[334968532,1723687834731,-5000.0,0.00023343,2]
[334968533,1723687834741,-3686.24018177,0.00023451,2]
[334968534,1723687834752,-577.08950482,0.00023451,2]
[334968535,1723687834765,-736.67031341,0.00023451,2]
[334968536,1723687834774,-343.73067011,0.00023466,2]
[334968537,1723687834784,-590.50692275,0.0002349,2]
[334968538,1723687834797,-1757.76879465,0.0002349,2]
[334968553,1723687838683,-155.11525549,0.00010566,2]
[334968554,1723687838694,-309.6,0.000177,7]
[334968555,1723687838705,-2651.7242826,0.0002349,2]
[334968556,1723687838714,-238.81,0.0002349,2]
[334968557,1723687838724,-238.81,0.0002349,2]
[334968558,1723687838733,-54906.45523693,0.000235,10]
[334968559,1723687838746,-303.16003,0.000235,10]
[334968560,1723687838759,-315.0,0.000235,10]
[334968562,1723687838962,-238.81,0.0002349,2]
[334968564,1723687838972,-3157.23284698,0.000235,10]
[334968566,1723687838984,-12297.18414986,0.000235,10]
[334968567,1723687838998,-4323.09037098,0.000235,10]
[334968568,1723687839010,-791.99862128,0.000235,10]
[334968576,1723687840368,-238.81,0.0002349,2]
[334968578,1723687840378,-238.81,0.0002349,2]
[334968579,1723687840387,-238.81,0.0002349,2]
[334968580,1723687840399,-238.81,0.0002349,2]
[334968581,1723687840408,-238.81,0.0002349,2]
[334968582,1723687840417,-310.14703584,0.000235,10]
[334968583,1723687840428,-21747.4287702,0.000235,10]
[334968584,1723687840439,-38011.59095645,0.000235,10]
[334968585,1723687840450,-166.67930678,0.000235,10]
[334968586,1723687840459,-1932.60611324,0.00023566,2]
[334968587,1723687840468,-1000.0,0.00023571,2]
[334968588,1723687840478,-364.56,0.00023594,2]
[334968589,1723687840490,-152.29,0.00023603,2]
[334968590,1723687840500,-5000.0,0.00023613,2]
[334968591,1723687840511,-5000.0,0.00023645,2]
[334968592,1723687840522,-150.0,0.00023648,2]
[334968593,1723687840532,-5000.0,0.0002366,2]
[334968594,1723687840542,-426.49,0.00023671,2]
[334968595,1723687840552,-150.0,0.00023671,2]
[334968596,1723687840561,-181.31,0.00023671,2]
[334968597,1723687840570,-1061.94,0.00023671,2]
[334968598,1723687840580,-715.63,0.00023671,2]
[334968599,1723687840589,-150.0,0.00023671,2]
[334968600,1723687840598,-150.63,0.00023671,2]
[334968601,1723687840607,-150.0,0.00023671,2]
[334968602,1723687840616,-426.49,0.00023671,2]
[334968603,1723687840626,-426.49,0.00023671,2]
[334968604,1723687840635,-150.0,0.00023671,2]
[334968605,1723687840644,-426.49,0.00023671,2]
[334968606,1723687840652,-150.0,0.00023671,2]
[334968607,1723687840661,-150.0,0.00023671,2]
[334968608,1723687840671,-150.0,0.00023671,2]
[334968609,1723687840679,-150.0,0.00023671,2]
[334968610,1723687840689,-150.0,0.00023671,2]
[334968611,1723687840697,-150.0,0.00023671,2]
[334968612,1723687840708,-5000.0,0.00023718,2]
[334968613,1723687840718,-5000.0,0.00023754,2]
[334968614,1723687840727,-5000.0,0.00023802,2]
[334968615,1723687840736,-343.73067009,0.00023811,2]
[334968616,1723687840745,-5000.0,0.00023813,2]
[334968617,1723687840754,-500.0,0.00023815,2]
[334968618,1723687840764,-5000.0,0.00023859,2]
[334968619,1723687840774,-162.97119315,0.0002389,2]
[334968620,1723687840783,-7500.0,0.0002389,2]
[334968621,1723687840792,-5000.0,0.00023903,2]
[334968622,1723687840802,-168.81426168,0.0002391,2]
[334968623,1723687840812,-5000.0,0.0002392,2]
[334968624,1723687840821,-5000.0,0.00023936,2]
[334968625,1723687840831,-500.0,0.00023952,2]
[334968626,1723687840841,-38502.176112,0.0002398,4]
[334968627,1723687840851,-152.29,0.0002398,2]
[334968628,1723687840860,-153.80344518,0.00023987,2]
[334968629,1723687840869,-6417.029352,0.0002399,4]
[334968630,1723687840879,-502.80170686,0.0002399,45]
[334968631,1723687840889,-47451.7830501,0.0002399,4]
[334968632,1723687840901,-58232.0,0.0002399,4]
[334968636,1723687843217,-238.81,0.0002349,2]
[334968637,1723687843227,-238.81,0.0002349,2]
[334968638,1723687843237,-238.81,0.0002349,2]
[334968639,1723687843246,-238.81,0.0002349,2]
[334968640,1723687843256,-238.81,0.0002349,2]
[334968641,1723687843266,-238.81,0.0002349,2]
[334968642,1723687843275,-238.81,0.0002349,2]
[334968643,1723687843285,-20358.22014733,0.0002399,4]
[334968721,1723687844216,-238.81,0.0002349,2]
[334968723,1723687844226,-715.17820357,0.0002399,4]
[334968726,1723687844245,-238.81,0.0002349,2]
[334968728,1723687844255,-27039.16390333,0.0002399,4]
[334968730,1723687844266,-1850.63824699,0.0002399,4]
[334968732,1723687844278,-1219.28000007,0.0002399,4]
[334968764,1723687848647,-155.08529296,0.00012106,2]
[334968766,1723687848657,-155.82819969,0.00019,2]
[334968768,1723687848666,-92.69738994,0.00023158,2]
[334968778,1723687848922,-578.82261006,0.00023158,2]
[334968779,1723687848932,-238.81,0.0002349,2]
[334968780,1723687848941,-238.81,0.0002349,2]
[334968781,1723687848951,-238.81,0.0002349,2]
[334968782,1723687848960,-201.28695781,0.0002349,2]
[334968783,1723687848971,-37.52304219,0.0002349,2]
[334968784,1723687848980,-238.81,0.0002349,2]
[334968785,1723687848990,-238.81,0.0002349,2]
[334968786,1723687849136,-238.81,0.0002349,2]
[334968787,1723687849146,-238.81,0.0002349,2]
[334968788,1723687849156,-238.81,0.0002349,2]
[334968789,1723687849165,-238.81,0.0002349,2]
[334968790,1723687849175,-238.81,0.0002349,2]
[334968791,1723687849185,-238.81,0.0002349,2]
[334968792,1723687849194,-238.81,0.0002349,2]
[334968793,1723687849204,-238.81,0.0002349,2]
[334968794,1723687849214,-238.81,0.0002349,2]
[334968795,1723687849224,-238.81,0.0002349,2]
[334968796,1723687849234,-18.37565781,0.0002349,2]
[334968797,1723687849246,-220.43434219,0.0002349,2]
[334968798,1723687849256,-238.81,0.0002349,2]
[334968799,1723687849266,-238.81,0.0002349,2]
[334968800,1723687849275,-238.81,0.0002349,2]
[334968801,1723687849284,-238.81,0.0002349,2]
[334968802,1723687849294,-150.0,0.00023671,2]
[334968803,1723687849303,-13353.32565781,0.0002399,4]
[334968804,1723687849315,-1038.8,0.0002399,4]
[334968805,1723687849326,-1367.99179144,0.0002399,4]
[334968810,1723687867014,500.0,0.00027,120]
[334968811,1723687867175,500.0,0.00027,120]
[334968812,1723687867681,500.0,0.00027,120]
[334968813,1723687867744,501.58879561,0.00027,120]
[334968814,1723687867975,587.76178837,0.00027,120]
[334968817,1723687987504,500.0,0.00024657,120]
[334968818,1723687988120,500.0,0.00025342,120]
[334968819,1723687988400,500.0,0.00026027,120]
[334968820,1723687988686,500.0,0.00026712,120]
[334968821,1723687991081,400.0,0.00024799,120]
[334968828,1723688446210,-13305.54205551,0.00010699,2]
[334968829,1723688446236,-798.78426727,0.00010862,2]
[334968830,1723688446257,-2112.46328814,0.00010888,2]
[334968831,1723688446278,-991.59682408,0.00010888,2]
[334968832,1723688446298,-159.0044215,0.0001089,2]
[334968833,1723688446318,-160.91085383,0.0001089,2]
[334968834,1723688446339,-529.94641814,0.0001089,2]
[334968835,1723688446359,-192.4963646,0.0001089,2]
[334968836,1723688446378,-948.36823198,0.00011235,2]
[334968837,1723688446398,-155.0,0.00013052,2]
[334968838,1723688446418,-189.47,0.00013699,2]
[334968839,1723688446437,-2695.92435199,0.0001387,2]
[334968840,1723688446458,-3879.03294854,0.0001387,2]
[334968841,1723688446478,-197.45670583,0.00013971,2]
[334968842,1723688446500,-5000.0,0.00013971,2]
[334968843,1723688446520,-1500.0,0.00014225,2]
[334968844,1723688446540,-155.0,0.00014225,2]
[334968845,1723688446560,-489.33840705,0.00014234,2]
[334968846,1723688446579,-382.21433994,0.00014235,2]
[334968847,1723688446746,-401.51974171,0.00014245,2]
[334968848,1723688446768,-5959.0684083,0.00014245,3]
[334968849,1723688446789,-383.79,0.0001726,2]
[334968850,1723688446808,-499.99,0.00017534,2]
[334968851,1723688446831,-192.54,0.00017773,2]
[334968852,1723688446850,-904.0,0.000181,3]
[334968853,1723688446872,-155.18352263,0.00019,2]
[334968854,1723688446893,-179.28119514,0.00019,2]
[334968855,1723688446914,-2348.59,0.00019567,2]
[334968856,1723688446934,-226.0,0.000198,2]
[334968857,1723688446955,-198.88,0.00019875,2]
[334968858,1723688446976,-1000.0,0.00019976,2]
[334968859,1723688449550,152.16,0.00013973,2]
[334968861,1723688461008,2112.46328814,0.00010888,2]
[334969025,1723688585349,500.0,0.00024657,120]
[334969026,1723688585957,500.0,0.00025342,120]
[334969027,1723688586234,500.0,0.00026027,120]
[334969028,1723688586492,500.0,0.00026712,120]
[334969035,1723688882523,805.58254123,0.0001,2]
[334969036,1723688911479,170.54579841,0.0001,2]
[334969041,1723688916180,162.76853278,0.0001,2]
[334969042,1723688919554,181.88317935,0.0001,2]
[334969043,1723688924431,157.51590077,0.0002509,120]
[334969045,1723688928244,429.9045192,0.00027,120]
[334969046,1723688936106,693.45613464,0.0001,2]
[334969047,1723688958164,-2580.59201072,0.00011,2]
[334969049,1723688958226,-2580.59201072,0.00011,2]
[334969051,1723688958293,-546.03832703,0.00011,2]
[334969052,1723688987010,231.97375857,0.0001,2]
[334969053,1723689006985,170.54579841,0.0001,2]
[334969054,1723689014149,162.76853278,0.0001,2]
[334969067,1723689032495,-264.05668947,0.00010999,2]
[334969076,1723689032655,-35.94331053,0.00010999,2]
[334969077,1723689032665,-1157.26613857,0.00011,2]
[334969078,1723689032676,-2881.11165202,0.00011,2]
[334969079,1723689032688,-10475.99620537,0.00011,2]
[334969080,1723689032700,-3474.12324214,0.00011,2]
[334969081,1723689032712,-1287.63294274,0.00011,2]
[334969082,1723689032723,-2063.11640613,0.00011,2]
[334969083,1723689032808,-1780.85850713,0.00011,2]
[334969085,1723689032819,-6430.25741729,0.00011,2]
[334969088,1723689038487,-863.00635281,0.00011,2]
[334969089,1723689038728,-2846.7675739,0.00011,2]
[334969090,1723689038739,-5206.59717802,0.00011,2]
[334969095,1723689040788,-19575.68017879,0.00011,2]
[334969103,1723689043591,-1497.07638284,0.00011,2]
[334969104,1723689043602,-1295.88779754,0.00011,2]
[334969105,1723689043664,-8517.7090695,0.00011,2]
[334969108,1723689044136,162.76853278,0.0001,2]
[334969110,1723689046668,-834.08,0.00011,2]
[334969113,1723689049103,301.07270147,0.0001,2]
[334969114,1723689101978,170.54579841,0.0001,2]
[334969116,1723689154696,550.0,0.0001,2]
[334969118,1723689178435,500.0,0.00024657,120]
[334969119,1723689178731,500.0,0.00025342,120]
[334969120,1723689178987,500.0,0.00026027,120]
[334969121,1723689179247,286.72261835,0.00026712,120]
[334969122,1723689207991,158.14481684,0.0001,2]
[334969124,1723689760349,222.49,9.827e-05,2]
[334969125,1723690159606,-1300.70388847,0.00010009,2]
[334969126,1723690159633,-1394.03256922,0.00010097,2]
[334969127,1723690159665,-105.96743078,0.00010097,2]
[334969128,1723690159693,-1284.86634878,0.00010097,2]
[334969129,1723690165625,-150.0,0.00010097,2]
[334969130,1723690167309,-150.0,0.00010097,2]
[334969131,1723690168520,-150.0,0.00010097,2]
[334969132,1723690180926,-150.0,0.00010097,2]
[334969133,1723690183354,-150.0,0.00010097,2]
[334969134,1723690189083,-150.0,0.00010097,2]
[334969135,1723690209541,-228.91826753,0.00010026,2]
[334969136,1723690219173,-500.0,0.00010026,2]
[334969137,1723690220373,-32.02263997,0.00010026,2]
[334969138,1723690220398,-219.23716312,0.00010026,2]
[334969139,1723690220422,-248.74019691,0.00010026,2]
[334969140,1723690221904,220.77,8.787e-05,2]
[334969141,1723690229810,-150.0,0.00010026,2]
[334969142,1723690230910,-150.0,0.00010026,2]
[334969147,1723690231547,-3327.01581945,0.00010026,2]
[334969149,1723690231556,-432.5166998,0.00010026,2]
[334969151,1723690231566,-601.93512367,0.00010026,2]
[334969153,1723690231575,-300.0,0.00010096,2]
[334969155,1723690231587,-368.52992414,0.00010097,2]
[334969157,1723690231602,-155.15064389,0.00010097,2]
[334969159,1723690231612,-270.65459462,0.00010097,2]
[334969161,1723690231621,-159.92323214,0.00010097,2]
[334969163,1723690231630,-279.56380374,0.00010097,2]
[334969164,1723690231640,-166.42979836,0.00010097,2]
[334969165,1723690231649,-236.82544287,0.00010097,2]
[334969166,1723690231658,-365.83889017,0.00010097,2]
[334969167,1723690231668,-276.577685,0.00010452,2]
[334969168,1723690231677,-357.4813523,0.00010471,2]
[334969169,1723690231686,-381.08748012,0.00010471,2]
[334969170,1723690231695,-203.42899612,0.00010471,2]
[334969171,1723690231705,-164.71703924,0.00010471,2]
[334969172,1723690231714,-155.20811647,0.00010471,2]
[334969173,1723690231726,-158.25829669,0.00010471,2]
[334969174,1723690231738,-370.70520594,0.00010471,2]
[334969175,1723690231747,-107.23703406,0.00010505,2]
[334969176,1723690231759,-48.05383516,0.00010505,2]
[334969177,1723690231770,-155.14009473,0.00010505,2]
[334969178,1723690231779,-155.24508963,0.00010505,2]
[334969179,1723690231788,-155.20691994,0.00010566,2]
[334969180,1723690231797,-200.0,0.00010705,2]
[334969181,1723690231807,-336.35406242,0.00010741,2]
[334969182,1723690231820,-2055.13960745,0.00010741,2]
[334969183,1723690231834,-300.0,0.00010741,2]
[334969184,1723690231845,-997.00916121,0.00010741,2]
[334969185,1723690231856,-641.02,0.00010741,2]
[334969186,1723690231867,-4311.39120602,0.00010741,2]
[334969187,1723690231878,-4413.7345626,0.00010741,2]
[334969188,1723690231888,-4950.35413857,0.00010741,2]
[334969189,1723690231899,-374.72117687,0.00010741,2]
[334969198,1723690233187,150.0,0.00010026,2]
[334969201,1723690237945,-5.27820876,0.00010026,2]
[334969202,1723690237954,-5520.27608486,0.00010741,2]
[334969203,1723690237963,-4559.98534584,0.00010769,2]
[334969204,1723690237975,-3509.85465416,0.00010769,2]
[334969205,1723690237984,-800.0,0.00010773,2]
[334969206,1723690237993,-2112.46328814,0.00010888,2]
[334969207,1723690238002,-303.98208233,0.0001089,2]
[334969208,1723690238011,-2055.94814932,0.000109,2]
[334969209,1723690238020,-670.15,0.00010927,2]
[334969210,1723690238030,-653.7077551,0.00010949,2]
[334969211,1723690238039,-298.09256283,0.00010979,2]
[334969212,1723690238048,-8223.4562347,0.0001099,2]
[334969213,1723690238057,-1074.78314637,0.00010999,2]
[334969214,1723690238067,-4598.28914614,0.00011,2]
[334969215,1723690238313,-151547.01694505,0.00011,2]
[334969216,1723690238323,-499.99,0.00011,2]
[334969217,1723690238334,-220.77,0.00011051,2]
[334969219,1723690238343,-2709.17,0.00011122,2]
[334969220,1723690238353,-601.24,0.00011356,2]
[334969221,1723690238363,-250.0,0.00011503,2]
[334969222,1723690238373,-197.55013481,0.00011911,2]
[334969223,1723690238382,-3937.52075365,0.00011911,2]
[334969224,1723690238392,-628.70277812,0.00011911,2]
[334969225,1723690238402,-600.0,0.00012,2]
[334969226,1723690238412,-5000.0,0.00012,2]
[334969227,1723690238422,-164.77,0.00012,2]
[334969228,1723690238432,-164.77,0.00012,2]
[334969229,1723690238442,-164.77,0.00012,2]
[334969230,1723690238451,-164.77,0.00012,2]
[334969231,1723690238461,-800.0,0.00012119,2]
[334969232,1723690238470,-155.0,0.00012126,2]
[334969233,1723690238480,-155.0,0.00012126,2]
[334969234,1723690238490,-401.51974171,0.00012126,2]
[334969235,1723690238499,-320.0,0.00012222,2]
[334969236,1723690238509,-250.0,0.00012436,2]
[334969237,1723690238519,-155.0,0.00012938,2]
[334969238,1723690238528,-7934.49,0.00013086,2]
[334969239,1723690238538,-214.39,0.000131,2]
[334969240,1723690238548,-220.77,0.00013315,2]
[334969241,1723690238558,-800.0,0.00013466,2]
[334969243,1723690238568,-200.0,0.0001349,2]
[334969245,1723690238578,-320.0,0.0001375,2]
[334969246,1723690238590,-339.7,0.00013973,2]
[334969247,1723690238601,-194.66,0.00013973,2]
[334969248,1723690238610,-650.0,0.00014,2]
[334969249,1723690238620,-950.59631739,0.00014234,2]
[334969250,1723690238630,-800.0,0.00014812,2]
[334969251,1723690238640,-200.0,0.00015176,2]
[334969252,1723690238650,-320.0,0.00015278,2]
[334969253,1723690238659,-670.15,0.00015297,2]
[334969254,1723690238668,-220.77,0.00015579,2]
[334969255,1723690238678,-553.54866205,0.00016,50]
[334969256,1723690238688,-700.0,0.00016,2]
[334969257,1723690238697,-200.0,0.00016057,2]
[334969258,1723690238708,-800.0,0.00016159,2]
[334969259,1723690238717,-320.0,0.00016805,2]
[334969260,1723690238730,-200.0,0.00016862,2]
[334969261,1723690238740,-220.77,0.00017843,2]
[334969262,1723690238749,-2706.0,0.00018,3]
[334969263,1723690238759,-320.0,0.00018333,2]
[334969264,1723690238770,-200.0,0.00018549,2]
[334969265,1723690238780,-1703.91677315,0.000193,2]
[334969266,1723690238790,-339.84676949,0.00019422,2]
[334969267,1723690238800,-368.10465396,0.00019431,2]
[334969268,1723690238811,-339.8467695,0.0001948,2]
[334969269,1723690238822,-5045.13,0.00019485,2]
[334969270,1723690238831,-368.10465396,0.00019489,2]
[334969271,1723690238843,-177.04,0.00019517,2]
[334969272,1723690238852,-418.24902448,0.00019585,2]
[334969273,1723690238862,-166.0,0.0002009,3]
[334969274,1723690238871,-279.69,0.00020091,2]
[334969275,1723690238880,-220.77,0.00020106,2]
[334969276,1723690238891,-200.0,0.00020235,2]
[334969277,1723690238901,-502.13611661,0.00020347,2]
[334969278,1723690238911,-339.7,0.00020447,2]
[334969279,1723690238922,-1000.0,0.00020695,2]
[334969280,1723690238931,-610.0,0.00020935,2]
[334969281,1723690238941,-5005.311001,0.00021,2]
[334969282,1723690238951,-2000.0,0.000219,2]
[334969283,1723690238961,-435.69,0.00021918,2]
[334969284,1723690238971,-150.0,0.00021918,2]
[334969285,1723690238980,-150.0,0.00022027,2]
[334969286,1723690238990,-150.0,0.00022027,2]
[334969287,1723690238999,-150.0,0.00022027,2]
[334969288,1723690239009,-150.0,0.00022027,2]
[334969289,1723690239019,-150.0,0.00022027,2]
[334969290,1723690239028,-152.0,0.00022153,3]
[334969291,1723690239038,-3000.0,0.000222,2]
[334969292,1723690239048,-220.77,0.0002237,2]
[334969293,1723690239057,-150.0,0.00022495,2]
[334969294,1723690239067,-500.0,0.00022497,2]
[334969295,1723690239076,-1000.0,0.000227,2]
[334969296,1723690239086,-500.0,0.00022856,2]
[334969297,1723690239096,-500.0,0.00022977,2]
[334969298,1723690239106,-796.56499259,0.00022986,2]
[334969299,1723690239116,-150.0,0.00023071,2]
[334969300,1723690239126,-180.0,0.00023205,2]
[334969301,1723690239135,-500.0,0.00023267,2]
[334969302,1723690239144,-1812.41914697,0.00023566,2]
[334969303,1723690239153,-500.0,0.00023614,2]
[334969304,1723690239162,-9118.0281808,0.00023628,4]
[334969305,1723690239172,-151.0,0.00023638,7]
[334969306,1723690239181,-151.0,0.00023638,7]
[334969307,1723690239191,-1000.0,0.00023638,5]
[334969308,1723690239200,-1000.0,0.00023638,5]
[334969309,1723690239209,-1000.0,0.00023638,2]
[334969310,1723690239218,-1000.0,0.00023638,2]
[334969311,1723690239227,-1000.0,0.00023638,2]
[334969312,1723690239237,-1000.0,0.00023638,3]
[334969313,1723690239246,-1000.0,0.00023638,2]
[334969314,1723690239256,-1000.0,0.00023638,5]
[334969315,1723690239266,-1000.0,0.00023638,3]
[334969316,1723690239275,-1000.0,0.00023638,3]
[334969317,1723690239285,-1000.0,0.00023638,2]